Cogmind - Beta 15 @@@ ROGUE MODE // 2025.05.22 @ 23:04:11 Player: mix Result: Smashed by cave-in Performance ------------- Evolutions (0) 0 Regions Visited (2) 400 Robots Destroyed (11) 55 Value Destroyed (316) 316 Prototype IDs (11) 220 Alien Tech Used (0) 0 Bonus (0) 0 TOTAL SCORE: 991 Bonus ------- None Cogmind --------- Core Integrity 0/250 Matter 290/300 Energy 51/100 System Corruption 0% Temperature Cool (6) Movement Treading (160) Location -10/Subcaves Parts ------- > --- POWER (1) -------- Subdweller Power Source > --- PROPULSION (2) --- Light Treads Light Treads > --- UTILITY (2) ------ Small Storage Unit Makeshift Light Armor Plating > --- WEAPON (2) ------- Powered Cannon > --- INVENTORY (8) ---- Light Treads Heat Sink Utility Shielding Beam Cannon Beam Cannon Beam Cannon Grenade Launcher Peak State ------------ > --- POWER ------------ Light Ion Engine Subdweller Power Source > --- PROPULSION ------- Light Treads Light Treads > --- UTILITY ---------- Small Storage Unit Makeshift Light Armor Plating > --- WEAPON ----------- Powered Cannon > --- INVENTORY -------- Light Treads Light Treads Heat Sink Utility Shielding Beam Cannon Beam Cannon Beam Cannon Grenade Launcher [Rating: 24] Favorites ----------- Power Subdweller Power Source Engine Subdweller Power Source Propulsion Light Treads Treads Light Treads Utility Small Storage Unit Device Structural Scanner Storage Small Storage Unit Protection Makeshift Light Armor Plating Weapon Beam Cannon Energy Cannon Beam Cannon Ballistic Gun Assault Rifle Ballistic Cannon Light Cannon Launcher Grenade Launcher Build | -11 -10 -10 ------- Run | Yrd Mat Sub Slots Evolved . | . . . Power . | . . . Propulsion . | . . . Utility . | . . . Weapon . | . . . Parts Attached 18 | 5 7 6 Power 3 | . 1 2 Engine 3 | . 1 2 Core . | . . . Reactor . | . . . Propulsion 3 | 2 . 1 Treads 3 | 2 . 1 Leg . | . . . Wheel . | . . . Hover . | . . . Flight . | . . . Utility 5 | 1 3 1 Device 2 | . 2 . Storage 1 | 1 . . Processor . | . . . Hackware . | . . . Protection 2 | . 1 1 Artifact . | . . . Weapon 7 | 2 3 2 Energy Gun . | . . . Energy Cannon 3 | . 2 1 Ballistic Gun 2 | 2 . . Ballistic Cannon 1 | . 1 . Launcher 1 | . . 1 Special Weapon . | . . . Impact Weapon . | . . . Slashing Weapon . | . . . Piercing Weapon . | . . . Special Melee Weapon . | . . . Unidentified Prototypes . | . . . Parts Lost 2 | . . 2 Power 1 | . . 1 Propulsion 1 | . . 1 Utility . | . . . Weapon . | . . . Highest Loss Streak 1 | . . 1 To Critical Strikes . | . . . Average Backups 6 | . 3 7 Power . | . . . Propulsion 1 | . . 1 Utility 1 | . 1 2 Weapon 3 | . 2 3 Tool/Special . | . . . Unused Backups 5 | . 1 4 Power . | . . . Propulsion 1 | . . 1 Utility 2 | . 1 1 Weapon 2 | . . 2 Tool/Special . | . . . Average Slot Usage (%) 88 | . 89 88 Engine 15 | . 5 17 Treads 26 | . 28 26 Device 3 | . 4 3 Storage 13 | . 14 13 Protection 9 | . 7 9 Energy Cannon 16 | . 16 16 Ballistic Gun 1 | . 7 . Peak Build Rating 24 | 5 7 24 Average Rating 16 | 3 6 19 On Entrance 4 | . 5 7 Naked Turns . | . . . Heaviest Build 28 | 8 15 28 Greatest Support 40 | 40 40 40 Greatest Overweight (x) 1 | . . 1 Average Overweight (x) . | . . . Largest Inventory Capacity 8 | 8 8 8 Average Capacity 7 | 6 8 8 Most Carried 8 | 5 8 8 Average Carried 6 | . 3 7 Final Capacity 8 | 8 8 8 Final Carried 7 | . 7 7 Class Distribution -------------------- 100% | Mutant Dominant Class ---------------- Mutant | -10/Materials Mutant | -10/Subcaves Resources | -11 -10 -10 ----------- Run | Yrd Mat Sub Matter Collected 519 | 149 240 130 Remotely . | . . . Salvage Created 539 | . 403 136 Parts 28 | . 22 6 Haulers Intercepted 1 | . 1 . Recyclers Shooed . | . . . Parts Field Recycled . | . . . Retrieved Matter . | . . . Parts Self-Destructed 10 | . . 10 Prevented . | . . . Kills | -11 -10 -10 ------- Run | Yrd Mat Sub Combat Hostiles Destroyed 8 | . 5 3 Cannons 8 | . 5 3 Classes Destroyed 5 | . 4 1 Builder 1 | . 1 . Hauler 1 | . 1 . Recycler 1 | . 1 . Grunt 5 | . 5 . Subdweller 3 | . . 3 Best Kill Streak 2 | . 2 1 Combat Bots Only 2 | . 2 1 Max Kills in Single Turn 1 | . 1 1 Gunslinging . | . . . Exploded . | . . . Melee . | . . . Uniques/NPCs Destroyed . | . . . Combat | -11 -10 -10 -------- Run | Yrd Mat Sub Hostile Shots Fired 46 | . 24 22 Missed 9 | . 4 5 Hits 37 | . 20 17 Projectile 37 | . 20 17 Critical Strikes 1 | . 1 . Damage Taken 823 | . 263 560 Core 251 | . 86 165 Absorbed by Shields . | . . . Core Remaining (%) 100 | 100 . . Volleys Fired 110 | . 25 85 Largest 2 | . 2 2 Hottest 120 | . 120 120 Shots Fired 143 | . 47 96 Gun 3 | . 3 . Cannon 134 | . 44 90 Launcher 6 | . . 6 Special . | . . . Kinetic 6 | . 6 . Thermal 131 | . 41 90 Explosive 6 | . . 6 Electromagnetic . | . . . Robot Hit Streak 8 | . 7 8 Robot Miss Streak 2 | . 2 2 Penetration Max . | . . . Secondary Targets . | . . . Shots Hit Robots 41 | . 28 13 Core Hits 12 | . 9 3 Critical Kills . | . . . Critical Parts Destroyed . | . . . Critical Strikes . | . . . Melee Attacks . | . . . Impact . | . . . Slashing . | . . . Piercing . | . . . Sneak Attacks . | . . . Combat Hostiles . | . . . Follow-up Attacks . | . . . Damage Inflicted 803 | . 479 324 Guns 22 | . 22 . Cannons 781 | . 457 324 Explosions . | . . . Melee . | . . . Ramming . | . . . Kinetic 40 | . 40 . Thermal 763 | . 439 324 Explosive . | . . . Electromagnetic . | . . . Impact . | . . . Slashing . | . . . Piercing . | . . . Highest Corruption . | . . . Average Corruption . | . . . Corruption Purged . | . . . Corruption Blocked . | . . . Overload Shots . | . . . Overflow Damage . | . . . Projectiles . | . . . Explosions . | . . . Melee . | . . . Knockbacks . | . . . Impact . | . . . Kinetic . | . . . Secondary . | . . . Self-Inflicted Damage . | . . . Shots . | . . . Rammed . | . . . Targets Rammed . | . . . Kicked . | . . . Crushed . | . . . Highest Temperature 480 | . 480 42 Average Temperature 107 | . 169 12 Received Heat Transfer 255 | . 165 90 Effects 1 | . 1 . Matter Decay 1 | . 1 . Siege Activations . | . . . Martial Activations . | . . . Shielding Activations . | . . . Robots Disrupted . | . . . Combat Hostiles . | . . . Robots Corrupted . | . . . Combat Hostiles . | . . . Parts Fried . | . . . Impact Corruptions . | . . . Robots Melted . | . . . Combat Hostiles . | . . . Parts Melted . | . . . Heat Transferred 1295 | . 925 370 Parts Sabotaged . | . . . Parts Stolen . | . . . Parts Stripped . | . . . Power Chain Reactions . | . . . Alert | -11 -10 -10 ------- Run | Yrd Mat Sub Maximum Alert Level . | . . . Low Security (%) 100 | 100 100 . Level 1 . | . . . Level 2 . | . . . Level 3 . | . . . Level 4 . | . . . Level 5 . | . . . High Security . | . . . Max Security . | . . . Peak Influence 76 | . 76 . Initial . | . . . Average 17 | . 19 . Influence Increases 153 | . 153 . Destroy 0b10 Robot/C 100 | . 100 . Destroy 0b10 Robot/NC 15 | . 15 . Destroy Leader 22 | . 22 . Destroy Structure 1 | . 1 . Lose Combat Pursuer 15 | . 15 . Influence Decreases 153 | . 148 5 Entered New Map 3 | . . 3 Time Decay 150 | . 148 2 Squads Dispatched 1 | . 1 . Investigation . | . . . Extermination . | . . . Reinforcement 1 | . 1 . Assault . | . . . Garrison . | . . . Intercept . | . . . Searches Triggered . | . . . Construction Impeded . | . . . Haulers Reinforced . | . . . Active Scanning Responses . | . . . Cargo Convoy Interrupts . | . . . Stealth | -11 -10 -10 --------- Run | Yrd Mat Sub Distress Signals . | . . . Communications Jammed . | . . . Distress Signals . | . . . Times Spotted 14 | . 10 4 Peak Tracking Total 3 | . 3 2 Tactical Retreats 1 | . 1 . Traps | -11 -10 -10 ------- Run | Yrd Mat Sub Traps Triggered . | . . . Indirectly . | . . . Trap Hack Attempts . | . . . Triggered . | . . . Disarmed . | . . . Reprogrammed . | . . . Reused . | . . . Traps Extracted . | . . . Installed . | . . . Triggered . | . . . Machines | -11 -10 -10 ---------- Run | Yrd Mat Sub Machines Disabled 2 | . . 2 Max in Single Turn 2 | . . 2 Machines Repaired . | . . . Machines Dismantled . | . . . Machines Sabotaged . | . . . Overloaded Fab Kills . | . . . Hacking | -11 -10 -10 --------- Run | Yrd Mat Sub Machines Accessed 1 | . . 1 Terminals . | . . . Fabricators . | . . . Repair Stations . | . . . Recycling Units . | . . . Scanalyzers . | . . . Garrison Access . | . . . Total Hacks 9 | . . 9 Successful 9 | . . 9 Failed . | . . . Catastrophic . | . . . Database Lockouts . | . . . Manual . | . . . Terminals . | . . . Fabricators . | . . . Repair Stations . | . . . Recycling Units . | . . . Scanalyzers . | . . . Garrison Access . | . . . Terminal Hacks 9 | . . 9 Record 8 | . . 8 Proto ID Catalog 1 | . . 1 Fabricator Hacks . | . . . Repair Station Hacks . | . . . Recycling Unit Hacks . | . . . Scanalyzer . | . . . Garrison Access Hacks . | . . . Unauthorized Hacks . | . . . Terminals . | . . . Fabricators . | . . . Repair Stations . | . . . Recycling Units . | . . . Scanalyzers . | . . . Garrison Access . | . . . Data Cores Recovered . | . . . Used . | . . . Hacking Detections . | . . . Full Trace Events . | . . . Feedback Events . | . . . Feedback Blocked . | . . . Robot Schematics Acquired . | . . . Robots Built . | . . . Authchips . | . . . Time . | . . . Total Robot Build Rating . | . . . Part Schematics Acquired . | . . . Parts Built . | . . . Authchips . | . . . Time . | . . . Total Part Build Rating . | . . . Parts Repaired . | . . . Time . | . . . Parts Recycled . | . . . Recycled Matter . | . . . Retrieved Matter . | . . . Retrieved Components . | . . . Parts Scanalyzed . | . . . Part Schematics Acquired . | . . . Parts Damaged . | . . . Bothacking | -11 -10 -10 ------------ Run | Yrd Mat Sub Used RIF Installer . | . . . Robots Hacked . | . . . Non-combat . | . . . Combat . | . . . Robot Hacks Applied . | . . . Relay Couplers Released . | . . . Fabnet Peak Effective % . | . . . Robots Rewired . | . . . Allies Hacked . | . . . Hacks Repelled . | . . . Allies | -11 -10 -10 -------- Run | Yrd Mat Sub Total Allies . | . . . Largest Group . | . . . Highest-Rated Group . | . . . Highest-Rated Ally . | . . . Total Orders . | . . . Ally Attacks . | . . . Total Damage . | . . . Kills . | . . . Allies Corrupted . | . . . Allies Melted . | . . . Intel | -11 -10 -10 ------- Run | Yrd Mat Sub Active Infowar (turns) 582 | . 84 498 Structural 582 | . 84 498 Robot Analysis Total . | . . . Derelict Logs Recovered . | . . . Drone Launches . | . . . Drone Recoveries . | . . . Exploration | -11 -10 -10 ------------- Run | Yrd Mat Sub Turns Passed 2593 | 64 502 2027 Spaces Moved 1143 | 55 240 848 Core 30 | 30 . . Treads 1113 | 25 240 848 Legs . | . . . Wheels . | . . . Hover . | . . . Flight . | . . . Fastest Speed 50 | 50 160 160 Average Speed 159 | 100 160 162 Slowest Speed 240 | 160 160 240 Overloaded Moves . | . . . Propulsion Burnouts . | . . . Robots Hopped . | . . . Potential Cave-ins 11 | . . 11 Cave-ins Triggered 1 | . . 1 Exploration Rate (%) 22 | 5 33 29 Regions Visited 2 Branch Regions 1 Pre-discovered Areas . | . . . Known Exits Taken . | . . . Unknown Exits Taken 2 | 1 1 . Scrap Searched 3 | . . 3 Spaces Dug 11 | . . 11 Terrain Destroyed 78 | . . 78 Melee . | . . . Projectile 55 | . . 55 AOE 23 | . . 23 Terrain Rammed . | . . . Walls Destroyed . | . . . Machines Disabled . | . . . Actions | -11 -10 -10 --------- Run | Yrd Mat Sub Total 1790 | 64 311 1415 Wait 482 | . 21 461 Move 1141 | 54 239 848 Hop . | . . . Pick Up 25 | 5 14 6 Fast Attach 2 | . . 2 Attach 9 | 5 2 2 Detach . | . . . Swap 9 | . 5 4 Drop 12 | . 5 7 Fire 110 | . 25 85 Melee . | . . . Ram . | . . . Kick . | . . . Crush . | . . . Escape Stasis . | . . . Rewire . | . . . Trap . | . . . Miscellaneous . | . . . Route ------- -11/Scrapyard -10/Materials (discovered 2 exits: [*Mat] / *Sub) -10/Subcaves (discovered 1 exit: [*Mat]) History --------- Turn | Location | Event 3 | -11/Scrapyard | Discovered new exit (range 16) 65 | -11/Scrapyard | Entered Materials 291 | -10/Materials | Discovered new exit (range 7) 311 | -10/Materials | Build established: Mutant 552 | -10/Materials | Discovered new exit (range 9) 567 | -10/Materials | Entered Subcaves 568 | -10/Subcaves | Approached by a straggling Scientist 963 | -10/Subcaves | Discovered new exit (range 15) 1075 | -10/Subcaves | Visited 4L-MR0's lab 1117 | -10/Subcaves | Found Powered Cannon 1119 | -10/Subcaves | Attached Powered Cannon, gained temporary slot: Power 1240 | -10/Subcaves | Shifting Twisted Machinery released Sub. Power Source 1282 | -10/Subcaves | A swath of the cavern ceiling suddenly collapsed 1324 | -10/Subcaves | A swath of the cavern ceiling suddenly collapsed 1819 | -10/Subcaves | Core integrity fell below 50% 2594 | -10/Subcaves | Ambushed by Subdweller buried in earth 2595 | -10/Subcaves | Crushed by falling debris 2595 | -10/Subcaves | Smashed by cave-in Last Messages --------------- 01814_ Lgt. Treads destroyed. 01818_ 7Z-OXN(R) destroyed. 01823_ Acquired Sub. Power Source. 01827_ Subatomizers dissect the Sub. Monowheel. 01834_ Acquired 10 matter. 01837_ Subatomizers dissect the Sub. Monowheel. 01850_ Dropped Broken Sub. Power Source. 01850_ Temporary Power slot lost. 01917_ Subatomizers dissect the Sub. Monowheel. 01928_ Subatomizers dissect the Sub. Monowheel, destroying it. 02116_ Subatomizers dissect the Sub. Optics. 02168_ Subatomizers dissect the Broken Sub. Power Source, destroying it. 02185_ Sub. Power Source shoots sparks and powers down. 02595_ X6-T4C(R): "ARGHSUB!" 02595_ The unstable cave ceiling collapses. 02595_ Crushed by falling debris. Map ----- +----------------------------------------------------+ | ?????????????????????????????????????? | | ?????????????????????????????????????? | | ?????????????????????????????????????? | | ?????????????????????????????????????? | | ?????????????????????????????????????? | | ?????????????????????????????????????? | | ?????????????????????????????????????? | | ?????????????????????????????????????? | | ?????????????????????????????????????? | | ?????????????????????????????????????? | | ?????????????###???????###???????????? | | ?????????????# ####### ##?????###??# | | ??????????????## "# ####### ### | | ??????????????# " """ # | | ??????????????#### " """""" | | ?????????????????###"" """"" ## ## | | ???????????????????#"" " ######## | | ????????????????##### ### # # | | ????????????????#""####"" " && | | ???????????????## ##?##" " %% | | ??????????????## ##?## " ""& " | | ??????????????#" #### ## ####### | | ??????????????## "# #####?????? | | ??????????###?# ### #?????????? | | ?????????## ### ### ###???????? | | ?????????# R @; # #####???? | | ?????????#####;; ## ## #???? | | ?????????????## ##### ## ##???? | | ??????????????# ##??##### ##????? | | ??????????????# ####??## #?????? | | ??????????????## ## #??# ##????? | | ???????????????# #### #????? | | ???????????????## ## # ##????? | | ????????????????## ## #?????? | | ?????????????????###### ## # #?????? | | ??????????????????????##########?????? | | ?????????????????????????????????????? | | ?????????????????????????????????????? | | ?????????????????????????????????????? | | ?????????????????????????????????????? | | ???????????????????????????????####### | | ???????????????????????????????#" """" | | ????????????????????????????####" "X | | ????????????????????????????###### | | ????????????????????????????##" + | | ????????????????????????????## "###### | | ????????????????????????????##" ###### | | ????????????????????????????##"| ["### | | ????????????????????????????##" !] # | | ?????????????????#####??????### | +----------------------------------------------------+ Best States ------------- Heat Dissipation 35 Energy Generation 20 Energy Capacity 225 Matter Stores 300 Matter Capacity 300 Sight Range 16 Terrain Scan Density 10 Armor Coverage 100 Utility Shielding 33 Evasion (%) 50 Recoil Reduction 2 Item Schematics ----------------- None Robot Schematics ------------------ None Fabricated ------------ Nothing Repaired ---------- Nothing Alien Tech Used ----------------- None Achievements -------------- None Challenges ------------ None Game ------ Seed HardenedRemoteMicroactuators Manual? 0 Play Time 00:16:20 Cumulative 78.6 hours Start 2025.05.22 @ 22:46:52 End 2025.05.22 @ 23:04:11 Sessions 2 Manual Loads 0 Difficulty Rogue Special Mode None Game No. 127 Rogue 113 Adventurer 14 Explorer 0 Win Type - Total 1 Types 1/0/0/0/0/0/0/0/0/0 Lore% 33 Gallery% 43 Achievement% 44 Wizard Run 0 Options --------- Layout 1 ASCII 0 Keyboard 0 Movement Mouse Keybinds 0 Fullscreen 1 Font 32/SmallcapsGlow Map View 50x40 Zoom Use 2% Tactical HUD 1 Map Filters NONE Filters NONE Steam 1 RUN: bf01ad4b-d1d1-4810-bd06-613cd39fbe45